Cogmind - Beta 13 @@@ ROGUE MODE // 2024.04.01 @ 16:39:51 Player: carterz30cal Result: Destroyed by S-10 Pest with Light Assault Rifle Performance ------------- Evolutions (2) 1000 Regions Visited (5) 1000 Robots Destroyed (78) 390 Value Destroyed (1753) 1753 Prototype IDs (1) 20 Alien Tech Used (0) 0 Bonus (24) 24 TOTAL SCORE: 4187 Bonus ------- High Alert Combat Kills 24 Cogmind --------- Core Integrity 0/550 Matter 94/300 Energy 98/100 System Corruption 4% Temperature Cool (0) Movement Core (50) Location -8/Storage Parts ------- > --- POWER (1) -------- (None) > --- PROPULSION (3) --- (None) > --- UTILITY (4) ------ (None) > --- WEAPON (3) ------- (None) > --- INVENTORY (5) ---- Ion Engine System Shield Medium Laser Peak State ------------ > --- POWER ------------ Light Deuterium Engine > --- PROPULSION ------- Aluminum Leg Carbon-fiber Leg Carbon-fiber Leg > --- UTILITY ---------- Large Storage Unit Improved Signal Interpreter Hardened Light Armor Plating Reactive Plating > --- WEAPON ----------- Improved Assault Rifle Grenade Launcher Grenade Launcher > --- INVENTORY -------- Ion Engine Machine Analyzer Seismic Detector System Shield EM Pulse Gun Medium Laser Beam Rifle Particle Gun Light Assault Rifle Heavy Assault Rifle Grenade Launcher Mini Grenade Launcher [Rating: 26] Favorites ----------- Power Ion Engine Engine Ion Engine Power Core Nuclear Core Propulsion Aluminum Leg Treads Light Treads Leg Aluminum Leg Utility Large Storage Unit Device Sensor Array Storage Large Storage Unit Processor Signal Interpreter Protection Hardened Light Armor Plating Weapon Medium Laser Energy Gun Medium Laser Ballistic Gun Heavy Assault Rifle Launcher Grenade Launcher Build | -11 -10 -10 -9 -8 -8 ------- Run | Yrd Mat Min Mat Mat Sto Slots Evolved 4 | . . . 2 2 . Power . | . . . . . . Propulsion 1 | . . . 1 . . Utility 2 | . . . 1 1 . Weapon 1 | . . . . 1 . Parts Attached 59 | 7 17 . 18 16 1 Power 5 | 1 1 . 1 2 . Engine 4 | 1 1 . . 2 . Core 1 | . . . 1 . . Reactor . | . . . . . . Propulsion 12 | 2 4 . 4 2 . Treads 2 | 2 . . . . . Leg 10 | . 4 . 4 2 . Wheel . | . . . . . . Hover . | . . . . . . Flight . | . . . . . . Utility 13 | 2 3 . 4 4 . Device 2 | 1 . . 1 . . Storage 3 | 1 2 . . . . Processor 3 | . 1 . . 2 . Hackware . | . . . . . . Protection 5 | . . . 3 2 . Artifact . | . . . . . . Weapon 29 | 2 9 . 9 8 1 Energy Gun 11 | 2 5 . 2 1 1 Energy Cannon . | . . . . . . Ballistic Gun 7 | . . . 4 3 . Ballistic Cannon . | . . . . . . Launcher 11 | . 4 . 3 4 . Special Weapon . | . . . . . . Impact Weapon . | . . . . . . Slashing Weapon . | . . . . . . Piercing Weapon . | . . . . . . Special Melee Weapon . | . . . . . . Unidentified Prototypes . | . . . . . . Parts Lost 18 | . 1 . 3 13 1 Power 3 | . 1 . . 2 . Propulsion 5 | . . . . 5 . Utility 3 | . . . . 3 . Weapon 7 | . . . 3 3 1 Highest Loss Streak 5 | . 1 . 1 5 1 To Critical Strikes . | . . . . . . Average Slot Usage (%) 93 | . 100 100 97 82 9 Engine 7 | . 14 14 2 6 . Core 3 | . . . 8 1 . Treads 4 | . 20 . . . . Leg 22 | . 7 28 32 20 . Device 4 | . 3 . 10 2 . Storage 11 | . 14 14 11 8 . Processor 6 | . 10 14 1 3 . Protection 6 | . . . 9 14 . Energy Gun 12 | . 27 28 4 . 9 Ballistic Gun 4 | . . . 6 8 . Launcher 7 | . . . 10 15 . Naked Turns 56 | . . . . 48 8 Heaviest Build 49 | 15 30 29 40 49 2 Greatest Support 40 | 40 40 20 36 40 3 Greatest Overweight (x) 3 | . 1 1 1 3 . Average Overweight (x) . | . . 1 . . . Largest Inventory Capacity 15 | 8 15 15 15 15 5 Average Capacity 13 | 7 12 15 15 14 5 Most Carried 14 | 4 10 8 14 13 4 Average Carried 8 | 2 6 7 10 10 3 Final Capacity 15 | 8 15 15 15 5 5 Final Carried 11 | 2 6 8 11 4 3 Class Distribution -------------------- 55% | Scavenger-Mutant 25% | Mutant 12% | Tank 6% | Scavenger-Tank Dominant Class ---------------- Mutant | -10/Materials Scavenger-Mutant | -10/Mines Scavenger-Mutant | -9/Materials Tank | -8/Materials Mutant | -8/Storage Resources | -11 -10 -10 -9 -8 -8 ----------- Run | Yrd Mat Min Mat Mat Sto Matter Collected 1355 | 260 230 . 516 349 . Remotely . | . . . . . . Salvage Created 2035 | 126 518 71 739 581 . Parts 149 | 9 34 2 65 39 . Haulers Intercepted 5 | . 1 . 3 1 . Recyclers Shooed 2 | . . . 1 1 . Parts Field Recycled . | . . . . . . Retrieved Matter . | . . . . . . Parts Self-Destructed . | . . . . . . Prevented . | . . . . . . Kills | -11 -10 -10 -9 -8 -8 ------- Run | Yrd Mat Min Mat Mat Sto Combat Hostiles Destroyed 43 | . 13 . 21 9 . Guns 25 | . 10 . 15 . . AOE 18 | . 3 . 6 9 . Classes Destroyed 12 | 2 4 . 5 1 . Worker 9 | . . . 6 3 . Builder 3 | . . . 1 2 . Tunneler 4 | 3 . . 1 . . Hauler 5 | . 1 . 3 1 . Recycler 3 | 1 . 1 . 1 . Operator 3 | . . . 2 1 . Watcher 8 | . 3 . 2 3 . Swarmer 13 | . 3 . 10 . . Grunt 23 | . 10 . 7 6 . Duelist 1 | . . . 1 . . Sentry 5 | . . . 3 2 . Hunter 1 | . . . . 1 . Best Kill Streak 5 | 3 3 1 5 5 . Combat Bots Only 4 | . 3 . 4 3 . Max Kills in Single Turn 3 | 1 2 1 3 2 . Gunslinging 1 | . . . 1 . . Exploded 2 | . 2 . 2 1 . Melee . | . . . . . . Uniques/NPCs Destroyed . | . . . . . . Combat | -11 -10 -10 -9 -8 -8 -------- Run | Yrd Mat Min Mat Mat Sto Hostile Shots Fired 373 | . 64 . 105 180 24 Missed 113 | . 19 . 23 59 12 Damage Taken 3310 | . 531 . 958 1650 171 Core 852 | . 106 . 193 434 119 Absorbed by Shields . | . . . . . . Ignored by Resistances 118 | . . . . 118 . Regen/Repaired (Parts) 32 | . . . 32 . . Core Remaining (%) 69 | 100 . 57 51 . . Volleys Fired 163 | 8 46 3 62 44 . Largest 3 | 2 2 2 2 3 . Hottest 121 | 100 100 100 121 115 . Shots Fired 293 | 16 83 6 105 83 . Gun 233 | 16 78 6 76 57 . Cannon . | . . . . . . Launcher 60 | . 5 . 29 26 . Special . | . . . . . . Kinetic 93 | . . . 43 50 . Thermal 136 | 16 74 6 33 7 . Explosive 60 | . 5 . 29 26 . Electromagnetic 4 | . 4 . . . . Robot Hit Streak 10 | 3 6 4 6 10 . Robot Miss Streak 5 | 2 4 1 5 4 . Penetration Max . | . . . . . . Secondary Targets 1 | . . . 1 . . Max Gunslinging Chain 1 | . . . 1 . . Shots Hit Robots 143 | 9 37 5 53 39 . Core Hits 124 | 5 30 2 46 41 . Critical Kills . | . . . . . . Critical Parts Destroyed . | . . . . . . Critical Strikes 4 | 1 3 . . . . Burn 4 | 1 3 . . . . Melee Attacks . | . . . . . . Impact . | . . . . . . Slashing . | . . . . . . Piercing . | . . . . . . Sneak Attacks . | . . . . . . Combat Hostiles . | . . . . . . Follow-up Attacks . | . . . . . . Damage Inflicted 4333 | 115 653 63 1983 1519 . Guns 1708 | 115 450 63 670 410 . Cannons . | . . . . . . Explosions 2603 | . 203 . 1313 1087 . Melee . | . . . . . . Ramming 22 | . . . . 22 . Kinetic 763 | . . . 389 374 . Thermal 921 | 115 426 63 281 36 . Explosive 2603 | . 203 . 1313 1087 . Electromagnetic 24 | . 24 . . . . Impact . | . . . . . . Slashing . | . . . . . . Piercing . | . . . . . . Highest Corruption 4 | . . . . 4 4 Average Corruption 2 | . . . . 2 4 Corruption Purged . | . . . . . . Corruption Blocked . | . . . . . . Effects 6 | . . . . 5 1 Message Errors 1 | . . . . 1 . Matter Fused 1 | . . . . 1 . Energy Discharges 1 | . . . . . 1 Parts Rejected 1 | . . . . 1 . Misfires 2 | . . . . 2 . Overload Shots . | . . . . . . Overflow Damage 110 | . . . 109 1 . Projectiles . | . . . . . . Explosions 110 | . . . 109 1 . Melee . | . . . . . . Knockbacks . | . . . . . . Impact . | . . . . . . Kinetic . | . . . . . . Secondary . | . . . . . . Self-Inflicted Damage 246 | . 60 . 91 95 . Shots 9 | . 3 . 3 3 . Rammed 3 | . . . . 3 . Targets Rammed 4 | . . . . 4 . Kicked 1 | . . . . 1 . Crushed . | . . . . . . Highest Temperature 386 | 196 356 78 386 313 . Average Temperature 95 | 79 111 33 99 73 . Received Heat Transfer 1020 | . 231 . 204 567 18 Effects 7 | . 2 . 5 . . Shutdowns 1 | . . . 1 . . Energy Bleed 3 | . . . 3 . . Interference 2 | . 2 . . . . Short Circuit 1 | . . . 1 . . Siege Activations . | . . . . . . Robots Corrupted . | . . . . . . Combat Hostiles . | . . . . . . Parts Fried . | . . . . . . Impact Corruptions . | . . . . . . Robots Melted . | . . . . . . Combat Hostiles . | . . . . . . Parts Melted 4 | 1 1 . 2 . . Heat Transferred 2923 | 407 1480 185 777 74 . Parts Sabotaged . | . . . . . . Parts Stolen . | . . . . . . Parts Stripped . | . . . . . . Power Chain Reactions 1 | . 1 . . . . Alert | -11 -10 -10 -9 -8 -8 ------- Run | Yrd Mat Min Mat Mat Sto Peak Influence 546 | 20 298 120 546 419 204 Initial 206 | . 13 115 . 206 159 Average 197 | 8 136 76 252 295 175 Maximum Alert Level 2 | . 1 . 2 2 1 Low Security (%) 56 | 100 78 100 43 11 80 Level 1 31 | . 21 . 24 83 20 Level 2 12 | . . . 32 4 . Level 3 . | . . . . . . Level 4 . | . . . . . . Level 5 . | . . . . . . High Security . | . . . . . . Max Security . | . . . . . . Squads Dispatched 11 | . 3 . 2 4 2 Investigation 3 | . 2 . . 1 . Extermination . | . . . . . . Reinforcement 8 | . 1 . 2 3 2 Assault . | . . . . . . Garrison . | . . . . . . Intercept . | . . . . . . Searches Triggered . | . . . . . . Construction Impeded 1 | . . . . 1 . Haulers Reinforced . | . . . . . . Active Scanning Responses . | . . . . . . Cargo Convoy Interrupts . | . . . . . . Stealth | -11 -10 -10 -9 -8 -8 --------- Run | Yrd Mat Min Mat Mat Sto Distress Signals 5 | . . . 4 . 1 Communications Jammed . | . . . . . . Distress Signals . | . . . . . . Times Spotted 75 | . 18 . 30 19 8 Peak Tracking Total 7 | . 3 . 5 6 7 Tactical Retreats 2 | . . . 2 . . Traps | -11 -10 -10 -9 -8 -8 ------- Run | Yrd Mat Min Mat Mat Sto Traps Triggered 3 | . 1 . . 1 1 Indirectly . | . . . . . . Trap Hack Attempts . | . . . . . . Triggered . | . . . . . . Disarmed . | . . . . . . Reprogrammed . | . . . . . . Reused . | . . . . . . Traps Extracted . | . . . . . . Installed . | . . . . . . Triggered . | . . . . . . Machines | -11 -10 -10 -9 -8 -8 ---------- Run | Yrd Mat Min Mat Mat Sto Machines Disabled 14 | . 3 . 5 6 . Max in Single Turn 2 | . 2 . 2 2 . Machines Repaired . | . . . . . . Machines Dismantled . | . . . . . . Machines Sabotaged . | . . . . . . Overloaded Fab Kills . | . . . . . . Hacking | -11 -10 -10 -9 -8 -8 --------- Run | Yrd Mat Min Mat Mat Sto Machines Accessed 10 | . 3 . 4 3 . Terminals 5 | . 2 . 1 2 . Fabricators . | . . . . . . Repair Stations 2 | . . . 2 . . Recycling Units 2 | . 1 . 1 . . Scanalyzers 1 | . . . . 1 . Garrison Access . | . . . . . . Total Hacks 25 | . 7 . 8 10 . Successful 15 | . 4 . 5 6 . Failed 10 | . 3 . 3 4 . Catastrophic 3 | . 2 . . 1 . Database Lockouts . | . . . . . . Manual . | . . . . . . Terminals 15 | . 6 . 2 7 . Fabricators . | . . . . . . Repair Stations 4 | . . . 4 . . Recycling Units 3 | . 1 . 2 . . Scanalyzers 3 | . . . . 3 . Garrison Access . | . . . . . . Terminal Hacks 7 | . 3 . 1 3 . Emergency Access Points 1 | . . . 1 . . Alert Level 1 | . . . . 1 . Unreport Threat 1 | . . . . 1 . Locate Traps 2 | . 1 . . 1 . Transport Status 1 | . 1 . . . . Assault Status 1 | . 1 . . . . Fabricator Hacks . | . . . . . . Repair Station Hacks 2 | . . . 2 . . Scan Component 1 | . . . 1 . . Repair 1 | . . . 1 . . Recycling Unit Hacks 3 | . 1 . 2 . . Process 1 | . . . 1 . . Retrieve Components 2 | . 1 . 1 . . Scanalyzer 3 | . . . . 3 . Insert Component 2 | . . . . 2 . Analyze 1 | . . . . 1 . Garrison Access Hacks . | . . . . . . Unauthorized Hacks . | . . . . . . Terminals . | . . . . . . Fabricators . | . . . . . . Repair Stations . | . . . . . . Recycling Units . | . . . . . . Scanalyzers . | . . . . . . Garrison Access . | . . . . . . Data Cores Recovered . | . . . . . . Used . | . . . . . . Hacking Detections 7 | . 2 . 2 3 . Full Trace Events 2 | . 1 . . 1 . Feedback Events . | . . . . . . Feedback Blocked . | . . . . . . Robot Schematics Acquired . | . . . . . . Robots Built . | . . . . . . Authchips . | . . . . . . Time . | . . . . . . Total Robot Build Rating . | . . . . . . Part Schematics Acquired 1 | . . . . 1 . Parts Built . | . . . . . . Authchips . | . . . . . . Time . | . . . . . . Total Part Build Rating . | . . . . . . Parts Repaired 1 | . . . 1 . . Time 26 | . . . 26 . . Parts Recycled . | . . . . . . Recycled Matter . | . . . . . . Retrieved Matter . | . . . . . . Retrieved Components 16 | . 9 . 7 . . Parts Scanalyzed 1 | . . . . 1 . Part Schematics Acquired 1 | . . . . 1 . Parts Damaged . | . . . . . . Bothacking | -11 -10 -10 -9 -8 -8 ------------ Run | Yrd Mat Min Mat Mat Sto Used RIF Installer . | . . . . . . Robots Hacked . | . . . . . . Non-combat . | . . . . . . Combat . | . . . . . . Robot Hacks Applied . | . . . . . . Relay Couplers Released . | . . . . . . Fabnet Peak Effective % . | . . . . . . Robots Rewired . | . . . . . . Allies Hacked . | . . . . . . Hacks Repelled . | . . . . . . Allies | -11 -10 -10 -9 -8 -8 -------- Run | Yrd Mat Min Mat Mat Sto Total Allies . | . . . . . . Largest Group . | . . . . . . Highest-Rated Group . | . . . . . . Highest-Rated Ally . | . . . . . . Total Orders . | . . . . . . Ally Attacks . | . . . . . . Total Damage . | . . . . . . Kills . | . . . . . . Allies Corrupted . | . . . . . . Allies Melted . | . . . . . . Intel | -11 -10 -10 -9 -8 -8 ------- Run | Yrd Mat Min Mat Mat Sto Robot Analysis Total . | . . . . . . Derelict Logs Recovered 1 | . . 1 . . . Drone Launches . | . . . . . . Drone Recoveries . | . . . . . . Exploration | -11 -10 -10 -9 -8 -8 ------------- Run | Yrd Mat Min Mat Mat Sto Turns Passed 3707 | 137 788 612 1331 789 50 Spaces Moved 1890 | 63 368 317 636 408 98 Core 173 | 2 . . . 73 98 Treads 331 | 61 270 . . . . Legs 1386 | . 98 317 636 335 . Wheels . | . . . . . . Hover . | . . . . . . Flight . | . . . . . . Fastest Speed 50 | 50 160 190 120 50 50 Average Speed 163 | 156 167 190 171 155 50 Slowest Speed 330 | 160 190 190 190 330 50 Overloaded Moves . | . . . . . . Propulsion Burnouts . | . . . . . . Robots Hopped . | . . . . . . Cave-ins Triggered . | . . . . . . Exploration Rate (%) 31 | 5 51 48 36 31 18 Regions Visited 5 Branch Regions 2 Pre-discovered Areas . | . . . . . . Known Exits Taken 2 | . 1 1 . . . Unknown Exits Taken 3 | 1 . . 1 1 . Scrap Searched . | . . . . . . Spaces Dug . | . . . . . . Terrain Destroyed 425 | . 34 . 225 166 . Melee . | . . . . . . Projectile . | . . . . . . AOE 425 | . 34 . 225 166 . Terrain Rammed . | . . . . . . Walls Destroyed . | . . . . . . Machines Disabled . | . . . . . . Actions | -11 -10 -10 -9 -8 -8 --------- Run | Yrd Mat Min Mat Mat Sto Total 2221 | 86 450 321 772 493 99 Wait 40 | . 3 . 29 8 . Move 1885 | 62 367 316 635 407 98 Hop . | . . . . . . Pick Up 51 | 9 11 2 19 10 . Fast Attach . | . . . . . . Attach 24 | 7 1 . 6 9 1 Detach . | . . . . . . Swap 35 | . 16 . 12 7 . Drop 19 | . 6 . 9 4 . Fire 163 | 8 46 3 62 44 . Melee . | . . . . . . Ram 3 | . . . . 3 . Kick 1 | . . . . 1 . Crush . | . . . . . . Escape Stasis . | . . . . . . Rewire . | . . . . . . Trap . | . . . . . . Miscellaneous . | . . . . . . Route ------- -11/Scrapyard -10/Materials (discovered 3 exits: *Mat x2 / *Min) -10/Mines (discovered 2 exits: *Mat x2) -9/Materials -8/Materials -8/Storage History --------- Turn | Location | Event 28 | -11/Scrapyard | Discovered new exit (range 15) 138 | -11/Scrapyard | Entered Materials 291 | -10/Materials | Discovered new exit (range 8) 327 | -10/Materials | Build established: Mutant 328 | -10/Materials | Discovered new exit (range 11) 365 | -10/Materials | Identified exit to Mines 467 | -10/Materials | Discovered new exit (range 16) 501 | -10/Materials | Identified exit to Materials 926 | -10/Materials | Entered Mines 960 | -10/Mines | Met a Derelict bent on vengeance 987 | -10/Mines | Discovered exit to Materials (range 7) 1121 | -10/Mines | Build established: Scavenger-Mutant 1538 | -10/Mines | Entered Materials 1538 | -9/Materials | Evolved 2 slots: Propulsion x1, Utility x1 2085 | -9/Materials | Discovered new exit (range 14) 2519 | -9/Materials | Repaired Grenade Launcher 2869 | -9/Materials | Entered another Materials area 2869 | -8/Materials | Evolved 2 slots: Utility x1, Weapon x1 3174 | -8/Materials | Discovered new exit (range 9) 3407 | -8/Materials | Build established: Tank 3627 | -8/Materials | Core integrity fell below 50% 3658 | -8/Materials | Entered Storage 3664 | -8/Storage | Lost 5 parts (1p2n2w) 3683 | -8/Storage | Core integrity fell below 20% 3708 | -8/Storage | Destroyed by S-10 Pest with Light Assault Rifle Last Messages --------------- LOCATION=UNKNOWN GOAL=ESCAPE 03659_ O-16 Technician: "IFF HANDSHAKE FAILED. SECURING TERMINAL." 03662_ O-16 Technician uses terminal to summon reinforcements. 03662_ ALERT: Hostiles spotted, dispatching reinforcements to Terminal S008. 03662_ O-16 Technician locks terminal. 03677_ System corrupted: Energy discharge (-34). 03682_ Triggered Explosive Trap. 03682_ An explosion rips through the floor. 03685_ O-16 Technician sends out distress signal. 03685_ O-16 Technician: "IFF HANDSHAKE FAILED. SECURING TERMINAL." 03693_ S-10 Pest destroyed. 03697_ ALERT: Hostiles spotted, dispatching reinforcements to Terminal S012. 03701_ EM Pulse Gun destroyed. Map ----- +----------------------------------------------------+ | ????????????????# #? """????????????? | | ????????????????# #? """""??T???????? | | ???????????"##### # """"" #???????? | | ???????????" # #???????? | | ???????????" + #???????? | | ???????????"#T###=%# #???????? | | ????????????#???# =# #???????? | | ??????##?######## #? #??????? | | ??????# + #??#/#######??????? | | ??????# ! # #??# #????????????? | | ?????## ??# #??# #????????????? | | ?????# # #??# #????????????? | | ?????## """ """ + #### #????????????? | | ??????# ?"" """ # #????????????? | | ??????????" ""??# #????????????? | | ?????????? ????###### #????????????? | | ????????????########## #????????????? | | ????????????# / #????????????? | | ????????????# # #????????????? | | ????????????# """" # +????????????? | | ????????????# ????" # #????????????? | | ????????????# "????" # #????????????? | | ????????????# "???"" + +????????????? | | ????????????# "??"" ####????????????? | | ????????????# """" #???????????????? | | ????????????#@ s #???????????????? | | ????????????##########???????????????? | | ?????????????????????????????????????? | | ?????????????????????????????????????? | | ?????????????????????????????????????? | | ?????????????????????????????????????? | | ?????????????????????????????????????? | | ?????????????????????????????????????? | | ?????????????????????????????????????? | | ?????????????????????????????????????? | | ?????????????????????????????????????? | | ?????????????????????????????????????? | | ?????????????????????????????????????? | | ?????????????????????????????????????? | | ?????????????????????????????????????? | | ?????????????????????????????????????? | | ?????????????????????????????????????? | | ?????????????????????????????????????? | | ?????????????????????????????????????? | | ?????????????????????????????????????? | | ?????????????????????????????????????? | | ?????????????????????????????????????? | | ?????????????????????????????????????? | | ?????????????????????????????????????? | | ?????????????????????????????????????? | +----------------------------------------------------+ Best States ------------- Heat Dissipation 31 Energy Generation 14 Energy Capacity 250 Matter Stores 300 Matter Capacity 300 Sight Range 16 Robot Scan Range 14 Terrain Scan Density 10 Armor Coverage 300 Resistance: KI 20 Evasion (%) 55 Recoil Reduction 2 Item Schematics ----------------- Med. Laser | -8/Materials | Scanalyzed Robot Schematics ------------------ None Fabricated ------------ Nothing Alien Tech Used ----------------- None Achievements -------------- Everything Is Under Control Maybe Next Time I'll Detach My Launcher Remodeling Safety First Challenges ------------ None Game ------ Seed VisualBackupDrive Manual? 0 Play Time 00:39:59 Cumulative 2.1 hours Start 2024.04.01 @ 15:59:00 End 2024.04.01 @ 16:39:51 Sessions 1 Manual Loads 0 Difficulty Rogue Special Mode None Game No. 4 Rogue 4 Adventurer 0 Explorer 0 Win Type - Total 0 Types 0/0/0/0/0/0/0/0/0 Lore% 0 Gallery% 4 Achievement% 5 Wizard Run 0 Options --------- Layout 1 ASCII 0 Keyboard 0 Movement Mouse Keybinds 0 Fullscreen 1 Font 24/Smallcaps Map View 50x35 Zoom Use 0% Tactical HUD 1 Map Filters NONE Filters NONE Steam 1 RUN: fcfe8f05-f357-4e56-ae8d-ece277a96433